[Event "FIDE CB Open 2022"]
[Site "Ceske Budejovice"]
[Date "2022.07.02"]
[Round "2.30"]
[White "Vojtek, Pavel"]
[Black "Hrbolka, Ladislav"]
[Result "1/2-1/2"]
[ECO "D79"]
[WhiteElo "1711"]
[BlackElo "2164"]
[Annotator "RC"]
[PlyCount "80"]
[EventDate "2022.07.01"]
[EventType "swiss"]
[EventCountry "CZE"]
[SourceTitle "playchess.com"]
[Source "ChessBase"]
[SourceQuality "1"]
[TimeControl "40/5400+30:1800+30"]

1. c4 {[%emt 0:00:13]} Nf6 {[%emt 0:01:44]} 2. g3 {[%emt 0:00:09]} g6 {[%emt 0:00:38]} 3. Bg2 {[%emt 0:00:05]} c6 {[%emt 0:00:08]} 4. Nf3 {[%emt 0:00:11]} Bg7 {[%emt 0:00:08]} 5. O-O {[%emt 0:00:12]} O-O {[%emt 0:00:04]} 6. Nc3 {[%emt 0:00:31]} d5 {[%emt 0:00:09]} 7. cxd5 {[%emt 0:01:03]} cxd5 {[%emt 0:00:04]} 8. d4 {[%emt 0:01:31]} Nc6 {[%emt 0:00:05]} 9. Bf4 {[%emt 0:02:19]} Nh5 {[%emt 0:03:52]} 10. Be3 {[%emt 0:03:07]} e6 {[%emt 0:07:47]} 11. Qd2 {[%emt 0:06:05]} Bd7 {[%emt 0:05:49]} 12. Bh6 {[%emt 0:07:25]} Nf6 {[%emt 0:13:15]} 13. Bxg7 {[%emt 0:02:24]} Kxg7 {[%emt 0:00:02]} 14. Rfc1 {[%emt 0:09:38]} Rc8 {[%emt 0:04:31]} 15. Na4 {[%emt 0:10:51]} Ne4 {[%emt 0:03:30]} 16. Qd1 {[%emt 0:01:36]} b6 {[%emt 0:01:18]} 17. b3 {[%emt 0:01:00]} Qf6 {[%emt 0:06:22]} 18. e3 {[%emt 0:03:17]} g5 {[%emt 0:07:42]} 19. Qe2 {[%emt 0:08:43]} Rfd8 {[%emt 0:03:48]} 20. Nd2 {[%emt 0:04:55]} Nd6 {[%emt 0:00:07]} 21. Nb2 {[%emt 0:05:20]} Nb4 {[%emt 0:05:48]} 22. a4 {[%emt 0:01:44]} Rxc1+ {[%emt 0:03:04]} 23. Rxc1 {[%emt 0:00:03]} Rc8 {[%emt 0:00:04]} 24. Rxc8 {[%emt 0:03:10]} Bxc8 {[%emt 0:00:07]} 25. Nf3 {[%emt 0:06:01]} a5 {[%emt 0:05:05]} 26. Ne5 {[%emt 0:07:49]} Qf5 {[%emt 0:04:55]} 27. Qd1 {[%emt 0:02:35]} Ne4 {[%emt 0:08:33]} 28. Qf3 {[%emt 0:04:32]} Qxf3 {[%emt 0:05:58]} 29. Bxf3 {[%emt 0:00:43]} f6 {[%emt 0:01:22]} 30. Bxe4 {[%emt 0:02:26]} fxe5 {[%emt 0:00:08]} 31. Bb1 {[%emt 0:01:29]} exd4 {[%emt 0:00:05]} 32. exd4 {[%emt 0:00:03]} Nc6 {[%emt 0:00:24]} 33. Nd3 {[%emt 0:03:25]} Ba6 {[%emt 0:01:29]} 34. Ne5 {[%emt 0:00:42]} Nxd4 {[%emt 0:00:17]} 35. Nd7 {[%emt 0:00:41]} Nxb3 {[%emt 0:03:49]} 36. Nxb6 {[%emt 0:00:02]} Nc5 {[%emt 0:01:23]} 37. Bc2 {[%emt 0:01:15]} Bb7 {[%emt 0:01:40]} 38. Kf1 {[%emt 0:01:21]} h6 {[%emt 0:00:16]} 39. Ke2 {[%emt 0:00:33]} Kf6 {[%emt 0:00:08]} 40. Kf3 {[%emt 0:00:44]} Ke7 {[%emt 0:00:00]} 1/2-1/2

[Event "FIDE CB Open 2022"]
[Site "Ceske Budejovice"]
[Date "2022.07.02"]
[Round "2.31"]
[White "Zilavy, Jan"]
[Black "Shirinyan, Daniel"]
[Result "1-0"]
[ECO "E92"]
[WhiteElo "2090"]
[BlackElo "1876"]
[Annotator "NA RC"]
[PlyCount "45"]
[EventDate "2022.07.01"]
[EventType "swiss"]
[EventCountry "CZE"]
[SourceTitle "playchess.com"]
[Source "ChessBase"]
[SourceQuality "1"]
[TimeControl "40/5400+30:1800+30"]

1. d4 {[%emt 0:00:16]} Nf6 {[%emt 0:00:04]} 2. c4 {[%emt 0:00:09]} g6 {[%emt 0:00:05]} 3. Nc3 {[%emt 0:00:08]} Bg7 {[%emt 0:00:06]} 4. e4 {[%emt 0:00:09]} d6 {[%emt 0:00:04]} 5. Nf3 {[%emt 0:00:09]} O-O {[%emt 0:00:15]} 6. Be2 {[%emt 0:00:18]} e5 {[%emt 0:00:07]} 7. Be3 {[%emt 0:00:14]} exd4 {[%emt 0:00:31]} 8. Nxd4 {[%emt 0:00:08]} Re8 {[%emt 0:00:05]} 9. f3 {[%emt 0:00:19]} c6 {[%emt 0:02:32]} 10. Qd2 {[%emt 0:00:38]} d5 {[%emt 0:00:51]} 11. exd5 {[%emt 0:00:16]} cxd5 {[%emt 0:03:57]} 12. O-O {[%emt 0:05:46]} Nc6 {[%emt 0:00:30]} 13. c5 {[%emt 0:00:30]} Rxe3 {[%emt 0:00:30]} 14. Qxe3 {[%emt 0:00:30]} Qf8 {[%emt 0:00:30]} 15. Nxc6 {[%emt 0:00:30]} bxc6 {[%emt 0:00:30]} 16. Kh1 {[%emt 0:00:30]} Rb8 {[%emt 0:00:30]} 17. Na4 {[%emt 0:00:30]} Rb4 {[%emt 0:00:30]} 18. b3 {[%emt 0:00:25]} Nh5 {[%emt 0:22:21]} 19. Rae1 {[%emt 0:06:03]} Rh4 {[%emt 0:10:46]} 20. Qf2 {[%emt 0:03:22]} g5 {[%emt 0:02:26]} 21. f4 {[%emt 0:17:31]} Qd8 {[%emt 0:45:25]} 22. Bxh5 {[%emt 0:06:17]} Rxh5 {[%emt 0:00:05]} 23. Qe2 {[%emt 0:00:07]} 1-0

[Event "FIDE CB Open 2022"]
[Site "Ceske Budejovice"]
[Date "2022.07.02"]
[Round "2.32"]
[White "Havelka, Josef"]
[Black "Holub, Adam"]
[Result "1/2-1/2"]
[ECO "C67"]
[WhiteElo "2396"]
[BlackElo "1817"]
[Annotator "RC"]
[PlyCount "77"]
[EventDate "2022.07.01"]
[EventType "swiss"]
[EventCountry "CZE"]
[SourceTitle "playchess.com"]
[Source "ChessBase"]
[SourceQuality "1"]
[TimeControl "40/5400+30:1800+30"]

1. e4 {[%emt 0:00:10]} e5 {[%emt 0:04:01]} 2. Nf3 {[%emt 0:00:05]} Nc6 {[%emt 0:00:16]} 3. Bb5 {[%emt 0:00:07]} Nf6 {[%emt 0:01:02]} 4. O-O {[%emt 0:00:52]} Nxe4 {[%emt 0:01:22]} 5. d4 {[%emt 0:01:01]} Nd6 {[%emt 0:01:45]} 6. Bxc6 {[%emt 0:00:20]} dxc6 {[%emt 0:00:12]} 7. dxe5 {[%emt 0:00:04]} Nf5 {[%emt 0:00:31]} 8. Qxd8+ {[%emt 0:00:06]} Kxd8 {[%emt 0:00:11]} 9. Rd1+ {[%emt 0:00:51]} Ke8 {[%emt 0:00:20]} 10. h3 {[%emt 0:01:53]} h5 {[%emt 0:02:45]} 11. Nc3 {[%emt 0:06:33]} Be7 {[%emt 0:02:06]} 12. Bg5 {[%emt 0:02:40]} Be6 {[%emt 0:10:30]} 13. Bxe7 {[%emt 0:08:31]} Kxe7 {[%emt 0:05:41]} 14. Ng5 {[%emt 0:04:12]} Rad8 {[%emt 0:08:16]} 15. Ne2 {[%emt 0:21:10]} Bc4 {[%emt 0:16:58]} 16. Nf4 {[%emt 0:02:53]} Nd4 {[%emt 0:02:32]} 17. b3 {[%emt 0:13:24]} Ne2+ {[%emt 0:07:15]} 18. Nxe2 {[%emt 0:00:08]} Bxe2 {[%emt 0:00:07]} 19. Re1 {[%emt 0:00:35]} Rd2 {[%emt 0:04:53]} 20. Rac1 {[%emt 0:05:34]} Rhd8 {[%emt 0:04:18]} 21. Ne4 {[%emt 0:06:58]} Rd1 {[%emt 0:01:05]} 22. f4 {[%emt 0:03:40]} Rxc1 {[%emt 0:10:05]} 23. Rxc1 {[%emt 0:00:05]} Rd1+ {[%emt 0:00:30]} 24. Rxd1 {[%emt 0:00:08]} Bxd1 {[%emt 0:00:06]} 25. c3 {[%emt 0:04:52]} a5 {[%emt 0:02:59]} 26. Kf2 {[%emt 0:03:16]} b6 {[%emt 0:01:35]} 27. Ke3 {[%emt 0:02:57]} Bc2 {[%emt 0:01:51]} 28. b4 {[%emt 0:05:03]} a4 {[%emt 0:03:32]} 29. a3 {[%emt 0:00:15]} f6 {[%emt 0:04:33]} 30. exf6+ {[%emt 0:03:43]} gxf6 {[%emt 0:00:02]} 31. f5 {[%emt 0:01:25]} h4 {[%emt 0:02:40]} 32. Kf4 {[%emt 0:00:45]} Bxe4 {[%emt 0:01:49]} 33. Kxe4 {[%emt 0:00:04]} Kd6 {[%emt 0:00:16]} 34. Kf4 {[%emt 0:02:25]} Kd5 {[%emt 0:00:14]} 35. Kg4 {[%emt 0:00:23]} Kc4 {[%emt 0:00:18]} 36. Kxh4 {[%emt 0:00:05]} Kb3 {[%emt 0:00:38]} 37. g4 {[%emt 0:00:50]} Kxa3 {[%emt 0:00:07]} 38. g5 {[%emt 0:00:03]} fxg5+ {[%emt 0:00:57]} 39. Kxg5 {[%emt 0:00:04]} 1/2-1/2

[Event "FIDE CB Open 2022"]
[Site "Ceske Budejovice"]
[Date "2022.07.02"]
[Round "2.33"]
[White "Hiermann, Dietmar"]
[Black "Rucabado, Stefan"]
[Result "1-0"]
[ECO "C07"]
[WhiteElo "2224"]
[BlackElo "1809"]
[Annotator "ChessBase"]
[PlyCount "55"]
[EventDate "2022.07.01"]
[EventType "swiss"]
[EventCountry "CZE"]
[SourceTitle "playchess.com"]
[Source "ChessBase"]
[SourceQuality "1"]
[TimeControl "40/5400+30:1800+30"]

1. e4 {[%emt 0:00:38]} e6 {[%emt 0:03:04]} 2. d4 {[%emt 0:00:30]} d5 {[%emt 0:00:00]} 3. Nd2 {[%emt 0:00:05]} c5 {[%emt 0:00:09]} 4. exd5 {[%emt 0:00:13]} Qxd5 {[%emt 0:00:08]} 5. Ngf3 {[%emt 0:00:07]} cxd4 {[%emt 0:00:06]} 6. Bc4 {[%emt 0:00:04]} Qd6 {[%emt 0:00:06]} 7. Qe2 {[%emt 0:00:28]} Nf6 {[%emt 0:00:08]} 8. Nb3 {[%emt 0:00:09]} Nc6 {[%emt 0:00:06]} 9. Bg5 {[%emt 0:00:16]} a6 {[%emt 0:00:06]} 10. O-O-O {[%emt 0:00:15]} b5 {[%emt 0:00:05]} 11. Bd3 {[%emt 0:00:41]} Be7 {[%emt 0:00:28]} 12. Nfxd4 {[%emt 0:06:33]} Bb7 {[%emt 0:00:11]} 13. Kb1 {[%emt 0:07:42]} Qc7 {[%emt 0:04:17]} 14. Nxc6 {[%emt 0:03:35]} Bxc6 {[%emt 0:00:06]} 15. f3 {[%emt 0:01:04]} Nd5 {[%emt 0:01:57]} 16. Bxe7 {[%emt 0:01:02]} Kxe7 {[%emt 0:00:16]} 17. Be4 {[%emt 0:05:16]} Nf4 {[%emt 0:01:00]} 18. Qe3 {[%emt 0:02:35]} Bxe4 {[%emt 0:04:30]} 19. Qxe4 {[%emt 0:02:31]} Rhc8 {[%emt 0:03:11]} 20. Rd2 {[%emt 0:07:31]} Ng6 {[%emt 0:03:43]} 21. g3 {[%emt 0:16:07]} Qe5 {[%emt 0:10:03]} 22. Qb4+ {[%emt 0:03:36]} Ke8 {[%emt 0:00:58]} 23. f4 {[%emt 0:01:05]} a5 {[%emt 0:19:00]} 24. Nxa5 {[%emt 0:04:33]} Qb8 {[%emt 0:00:05]} 25. a3 {[%emt 0:17:02]} Qb6 {[%emt 0:29:16]} 26. Nb3 {[%emt 0:00:36]} Ne7 {[%emt 0:10:38]} 27. Qd4 {[%emt 0:04:09]} Nf5 {[%emt 0:09:50]} 28. Qxb6 {[%emt 0:00:10]} 1-0

[Event "FIDE CB Open 2022"]
[Site "Ceske Budejovice"]
[Date "2022.07.02"]
[Round "2.34"]
[White "Zima, Jan"]
[Black "Steinbauer, Sebastian"]
[Result "1-0"]
[ECO "C24"]
[WhiteElo "2134"]
[BlackElo "1808"]
[Annotator "NA RC"]
[PlyCount "39"]
[EventDate "2022.07.01"]
[EventType "swiss"]
[EventCountry "CZE"]
[SourceTitle "playchess.com"]
[Source "ChessBase"]
[SourceQuality "1"]
[TimeControl "40/5400+30:1800+30"]

1. e4 {[%emt 0:00:07]} e5 {[%emt 0:00:07]} 2. Bc4 {[%emt 0:00:16]} Nf6 {[%emt 0:00:09]} 3. d4 {[%emt 0:00:06]} Nxe4 {[%emt 0:00:44]} 4. dxe5 {[%emt 0:00:09]} c6 {[%emt 0:23:27]} 5. Qe2 {[%emt 0:00:37]} Nc5 {[%emt 0:04:51]} 6. a3 {[%emt 0:00:40]} Ne6 {[%emt 0:01:04]} 7. Nf3 {[%emt 0:00:15]} Bc5 {[%emt 0:01:35]} 8. Nc3 {[%emt 0:01:59]} O-O {[%emt 0:01:59]} 9. Ne4 {[%emt 0:00:44]} Nd4 {[%emt 0:00:57]} 10. Nxd4 {[%emt 0:04:41]} Bxd4 {[%emt 0:00:38]} 11. Ng5 {[%emt 0:17:42]} Qa5+ {[%emt 0:01:09]} 12. c3 {[%emt 0:01:09]} Bxe5 {[%emt 0:28:29]} 13. Qh5 {[%emt 0:04:49]} Bxc3+ {[%emt 0:06:03]} 14. bxc3 {[%emt 0:03:50]} Qxc3+ {[%emt 0:01:56]} 15. Kd1 {[%emt 0:00:21]} Qd4+ {[%emt 0:00:57]} 16. Bd2 {[%emt 0:00:38]} h6 {[%emt 0:01:37]} 17. Bxf7+ {[%emt 0:00:53]} Kh8 {[%emt 0:00:10]} 18. Qg6 {[%emt 0:03:43]} Qg4+ {[%emt 0:04:35]} 19. f3 {[%emt 0:00:40]} Qa4+ {[%emt 0:00:06]} 20. Kc1 {[%emt 0:00:37]} 1-0

[Event "FIDE CB Open 2022"]
[Site "Ceske Budejovice"]
[Date "2022.07.02"]
[Round "2.35"]
[White "Pavlicek, Petr"]
[Black "Johannsson, Birkir Isak"]
[Result "0-1"]
[ECO "E04"]
[WhiteElo "1806"]
[BlackElo "2131"]
[Annotator "NA RC"]
[PlyCount "72"]
[EventDate "2022.07.01"]
[EventType "swiss"]
[EventCountry "CZE"]
[SourceTitle "playchess.com"]
[Source "ChessBase"]
[SourceQuality "1"]
[TimeControl "40/5400+30:1800+30"]

1. c4 {[%emt 0:00:07]} e6 {[%emt 0:01:48]} 2. Nf3 {[%emt 0:00:18]} d5 {[%emt 0:00:09]} 3. d4 {[%emt 0:00:16]} Nf6 {[%emt 0:00:15]} 4. g3 {[%emt 0:00:13]} dxc4 {[%emt 0:00:39]} 5. Bg2 {[%emt 0:01:15]} c6 {[%emt 0:00:09]} 6. Ne5 {[%emt 0:00:30]} Bb4+ {[%emt 0:00:12]} 7. Nc3 {[%emt 0:04:59]} Nd5 {[%emt 0:00:36]} 8. Bd2 {[%emt 0:00:36]} Nb6 {[%emt 0:00:25]} 9. e3 {[%emt 0:03:04]} N8d7 {[%emt 0:05:43]} 10. Nxd7 {[%emt 0:01:46]} Bxd7 {[%emt 0:03:03]} 11. O-O {[%emt 0:00:16]} O-O {[%emt 0:07:54]} 12. Na4 {[%emt 0:00:52]} Bxd2 {[%emt 0:12:46]} 13. Nxb6 {[%emt 0:00:13]} axb6 {[%emt 0:01:15]} 14. Qxd2 {[%emt 0:00:09]} Qe7 {[%emt 0:02:35]} 15. b3 {[%emt 0:10:32]} cxb3 {[%emt 0:03:56]} 16. axb3 {[%emt 0:00:07]} Rfd8 {[%emt 0:04:12]} 17. Qc3 {[%emt 0:02:44]} g6 {[%emt 0:08:18]} 18. h4 {[%emt 0:02:14]} h5 {[%emt 0:00:21]} 19. Rxa8 {[%emt 0:03:05]} Rxa8 {[%emt 0:00:08]} 20. Ra1 {[%emt 0:00:08]} Ra3 {[%emt 0:04:43]} 21. Qb2 {[%emt 0:01:23]} Ra6 {[%emt 0:14:22]} 22. b4 {[%emt 0:02:40]} Be8 {[%emt 0:02:57]} 23. Ra3 {[%emt 0:16:21]} Qd8 {[%emt 0:04:03]} 24. Bf1 {[%emt 0:02:45]} Rxa3 {[%emt 0:00:26]} 25. Qxa3 {[%emt 0:00:10]} Qb8 {[%emt 0:00:52]} 26. b5 {[%emt 0:07:34]} cxb5 {[%emt 0:01:51]} 27. Qb4 {[%emt 0:00:26]} Qc7 {[%emt 0:01:57]} 28. Bxb5 {[%emt 0:00:45]} Bxb5 {[%emt 0:00:37]} 29. Qxb5 {[%emt 0:00:10]} Qc1+ {[%emt 0:00:07]} 30. Kh2 {[%emt 0:08:55]} Qc6 {[%emt 0:00:13]} 31. Qe5 {[%emt 0:00:55]} Qd5 {[%emt 0:02:51]} 32. Qf6 {[%emt 0:02:48]} b5 {[%emt 0:00:28]} 33. f3 {[%emt 0:00:24]} Qf5 {[%emt 0:02:44]} 34. Qd8+ {[%emt 0:01:14]} Kg7 {[%emt 0:00:15]} 35. Kg2 {[%emt 0:03:29]} Qc2+ {[%emt 0:00:32]} 36. Kh3 {[%emt 0:00:24]} Qd1 {[%emt 0:00:35]} 0-1

[Event "FIDE CB Open 2022"]
[Site "Ceske Budejovice"]
[Date "2022.07.02"]
[Round "2.36"]
[White "Vrchotka, Josef"]
[Black "Rosol, Philip"]
[Result "1-0"]
[ECO "B22"]
[WhiteElo "1959"]
[BlackElo "1741"]
[Annotator "NA RC"]
[PlyCount "78"]
[EventDate "2022.07.01"]
[EventType "swiss"]
[EventCountry "CZE"]
[SourceTitle "playchess.com"]
[Source "ChessBase"]
[SourceQuality "1"]
[TimeControl "40/5400+30:1800+30"]

1. e4 {[%emt 0:02:06]} c5 {[%emt 0:00:07]} 2. c3 {[%emt 0:00:07]} Nf6 {[%emt 0:00:52]} 3. e5 {[%emt 0:00:06]} Nd5 {[%emt 0:00:21]} 4. d4 {[%emt 0:00:08]} cxd4 {[%emt 0:00:11]} 5. Nf3 {[%emt 0:00:21]} Nc6 {[%emt 0:00:37]} 6. cxd4 {[%emt 0:00:25]} e6 {[%emt 0:01:25]} 7. Nc3 {[%emt 0:00:57]} Nxc3 {[%emt 0:01:58]} 8. bxc3 {[%emt 0:00:09]} d6 {[%emt 0:02:56]} 9. Bf4 {[%emt 0:03:57]} dxe5 {[%emt 0:11:47]} 10. Nxe5 {[%emt 0:00:58]} Nxe5 {[%emt 0:18:49]} 11. Bxe5 {[%emt 0:00:10]} Bd7 {[%emt 0:02:00]} 12. Bd3 {[%emt 0:03:49]} Rc8 {[%emt 0:11:14]} 13. Qb3 {[%emt 0:08:32]} Bc6 {[%emt 0:13:32]} 14. Bb5 {[%emt 0:03:36]} Qd7 {[%emt 0:12:52]} 15. Bxc6 {[%emt 0:07:31]} Qxc6 {[%emt 0:00:07]} 16. O-O {[%emt 0:00:50]} b6 {[%emt 0:01:08]} 17. Rfd1 {[%emt 0:05:10]} Be7 {[%emt 0:02:42]} 18. d5 {[%emt 0:03:29]} exd5 {[%emt 0:00:30]} 19. Bxg7 {[%emt 0:00:59]} Rg8 {[%emt 0:00:16]} 20. Bd4 {[%emt 0:00:25]} h5 {[%emt 0:02:23]} 21. Rd3 {[%emt 0:02:48]} h4 {[%emt 0:01:11]} 22. Re3 {[%emt 0:02:06]} Kf8 {[%emt 0:01:06]} 23. Qd1 {[%emt 0:02:56]} Qg6 {[%emt 0:02:52]} 24. Qf3 {[%emt 0:00:29]} Qd6 {[%emt 0:03:28]} 25. Rae1 {[%emt 0:00:50]} Bg5 {[%emt 0:01:28]} 26. Re5 {[%emt 0:02:21]} Rd8 {[%emt 0:00:23]} 27. Rf5 {[%emt 0:01:22]} Qd7 {[%emt 0:00:44]} 28. Ree5 {[%emt 0:00:43]} Re8 {[%emt 0:00:47]} 29. h3 {[%emt 0:01:38]} Rxe5 {[%emt 0:00:39]} 30. Rxe5 {[%emt 0:01:36]} Qb5 {[%emt 0:01:41]} 31. Rf5 {[%emt 0:01:30]} Qd7 {[%emt 0:03:31]} 32. Rxd5 {[%emt 0:00:33]} Qe6 {[%emt 0:00:20]} 33. Be5 {[%emt 0:03:45]} Be7 {[%emt 0:00:41]} 34. Bf4 {[%emt 0:00:16]} Qg6 {[%emt 0:00:46]} 35. Rd7 {[%emt 0:00:51]} Bc5 {[%emt 0:00:59]} 36. Be5 {[%emt 0:01:08]} Ke8 {[%emt 0:00:54]} 37. Rxa7 {[%emt 0:01:02]} Be7 {[%emt 0:00:41]} 38. Qd5 {[%emt 0:03:13]} Qb1+ {[%emt 0:00:56]} 39. Kh2 {[%emt 0:00:05]} Qc1 {[%emt 0:00:00]} 1-0

[Event "FIDE CB Open 2022"]
[Site "Ceske Budejovice"]
[Date "2022.07.02"]
[Round "2.37"]
[White "Nejdl, Eduard"]
[Black "Petirova, Iva"]
[Result "1/2-1/2"]
[ECO "C60"]
[WhiteElo "1951"]
[BlackElo "1722"]
[Annotator "NA RC"]
[PlyCount "119"]
[EventDate "2022.07.01"]
[EventType "swiss"]
[EventCountry "CZE"]
[SourceTitle "playchess.com"]
[Source "ChessBase"]
[SourceQuality "1"]
[TimeControl "40/5400+30:1800+30"]

1. e4 {[%emt 0:00:08]} e5 {[%emt 0:00:06]} 2. Nf3 {[%emt 0:00:07]} Nc6 {[%emt 0:00:38]} 3. Bb5 {[%emt 0:00:08]} Nge7 {[%emt 0:00:30]} 4. O-O {[%emt 0:01:51]} g6 {[%emt 0:01:20]} 5. c3 {[%emt 0:06:06]} Bg7 {[%emt 0:02:01]} 6. d4 {[%emt 0:00:40]} exd4 {[%emt 0:01:15]} 7. cxd4 {[%emt 0:00:17]} O-O {[%emt 0:00:29]} 8. d5 {[%emt 0:03:11]} Ne5 {[%emt 0:00:24]} 9. Nxe5 {[%emt 0:00:49]} Bxe5 {[%emt 0:00:09]} 10. f4 {[%emt 0:00:16]} Bg7 {[%emt 0:07:54]} 11. Bc4 {[%emt 0:07:54]} d6 {[%emt 0:01:54]} 12. Nc3 {[%emt 0:02:02]} Kh8 {[%emt 0:02:21]} 13. f5 {[%emt 0:10:22]} gxf5 {[%emt 0:02:43]} 14. exf5 {[%emt 0:03:34]} Bxf5 {[%emt 0:01:36]} 15. Bg5 {[%emt 0:08:48]} Bg6 {[%emt 0:05:01]} 16. g4 {[%emt 0:05:52]} Qd7 {[%emt 0:06:42]} 17. Bf6 {[%emt 0:16:02]} Bxf6 {[%emt 0:09:38]} 18. Rxf6 {[%emt 0:00:09]} Ng8 {[%emt 0:01:25]} 19. Rf4 {[%emt 0:04:56]} Rae8 {[%emt 0:03:20]} 20. Nb5 {[%emt 0:05:02]} f5 {[%emt 0:07:19]} 21. g5 {[%emt 0:03:23]} Re4 {[%emt 0:02:36]} 22. Rxe4 {[%emt 0:02:21]} fxe4 {[%emt 0:00:10]} 23. Qd4+ {[%emt 0:01:56]} Qg7 {[%emt 0:00:08]} 24. Qxg7+ {[%emt 0:01:19]} Kxg7 {[%emt 0:00:07]} 25. Rf1 {[%emt 0:02:04]} Rc8 {[%emt 0:05:48]} 26. Nxa7 {[%emt 0:01:18]} Re8 {[%emt 0:00:25]} 27. Nb5 {[%emt 0:00:21]} Re5 {[%emt 0:04:41]} 28. h4 {[%emt 0:00:56]} Ne7 {[%emt 0:01:16]} 29. Nxc7 {[%emt 0:01:10]} Bf7 {[%emt 0:00:16]} 30. Rd1 {[%emt 0:01:22]} e3 {[%emt 0:02:16]} 31. Nb5 {[%emt 0:03:38]} Nf5 {[%emt 0:04:16]} 32. a4 {[%emt 0:01:10]} Nxh4 {[%emt 0:03:31]} 33. Nxd6 {[%emt 0:00:50]} e2 {[%emt 0:02:14]} 34. Re1 {[%emt 0:05:34]} Nf3+ {[%emt 0:05:45]} 35. Kf2 {[%emt 0:00:08]} Nxe1 {[%emt 0:00:39]} 36. Kxe1 {[%emt 0:00:11]} b6 {[%emt 0:00:59]} 37. Nxf7 {[%emt 0:01:11]} Kxf7 {[%emt 0:00:09]} 38. Bxe2 {[%emt 0:01:24]} Ke7 {[%emt 0:02:11]} 39. Kf2 {[%emt 0:00:56]} Rxg5 {[%emt 0:01:40]} 40. Bf3 {[%emt 0:00:18]} Kd6 {[%emt 0:03:04]} 41. b4 {[%emt 0:30:19]} Rg7 {[%emt 0:32:15]} 42. a5 {[%emt 0:00:00]} bxa5 {[%emt 0:00:00]} 43. bxa5 {[%emt 0:00:00]} h6 {[%emt 0:00:00]} 44. Be4 {[%emt 0:00:00]} Ra7 {[%emt 0:00:00]} 45. Kg3 {[%emt 0:00:00]} Ke5 {[%emt 0:00:00]} 46. Bf3 {[%emt 0:00:00]} Rxa5 {[%emt 0:00:00]} 47. Kg4 {[%emt 0:00:00]} Ra3 {[%emt 0:00:00]} 48. Bg2 {[%emt 0:00:00]} Ra2 {[%emt 0:00:00]} 49. Bf3 {[%emt 0:00:00]} Rf2 {[%emt 0:00:00]} 50. Kg3 {[%emt 0:00:00]} Rf1 {[%emt 0:00:00]} 51. Bg2 {[%emt 0:00:00]} Rf4 {[%emt 0:00:00]} 52. Bf3 {[%emt 0:00:00]} Rd4 {[%emt 0:00:06]} 53. Bg2 {[%emt 0:00:00]} Kf5 {[%emt 0:01:00]} 54. Bh3+ {[%emt 0:00:00]} Kg5 {[%emt 0:00:07]} 55. Be6 {[%emt 0:00:00]} Rd3+ {[%emt 0:02:21]} 56. Kg2 {[%emt 0:00:00]} h5 {[%emt 0:01:29]} 57. Bf7 {[%emt 0:00:00]} Kg4 {[%emt 0:02:51]} 58. Be6+ {[%emt 0:00:09]} Kf4 {[%emt 0:01:14]} 59. Kh2 {[%emt 0:00:49]} Kg5 {[%emt 0:01:25]} 60. Kg2 {[%emt 0:00:12]} 1/2-1/2

[Event "FIDE CB Open 2022"]
[Site "Ceske Budejovice"]
[Date "2022.07.02"]
[Round "2.38"]
[White "Schmied, Eva-Maria"]
[Black "Lang, Simon"]
[Result "0-1"]
[ECO "B81"]
[WhiteElo "1718"]
[BlackElo "1942"]
[Annotator "NA RC"]
[PlyCount "82"]
[EventDate "2022.07.01"]
[EventType "swiss"]
[EventCountry "CZE"]
[SourceTitle "playchess.com"]
[Source "ChessBase"]
[SourceQuality "1"]
[TimeControl "40/5400+30:1800+30"]

1. e4 {[%emt 0:00:10]} c5 {[%emt 0:00:35]} 2. Nf3 {[%emt 0:00:05]} d6 {[%emt 0:00:49]} 3. d4 {[%emt 0:00:04]} cxd4 {[%emt 0:00:36]} 4. Nxd4 {[%emt 0:00:04]} Nf6 {[%emt 0:00:45]} 5. Nc3 {[%emt 0:00:08]} e6 {[%emt 0:01:16]} 6. h3 {[%emt 0:00:04]} a6 {[%emt 0:00:30]} 7. g4 {[%emt 0:00:10]} h6 {[%emt 0:01:44]} 8. Be3 {[%emt 0:03:26]} Nc6 {[%emt 0:01:53]} 9. Bg2 {[%emt 0:08:11]} Ne5 {[%emt 0:01:19]} 10. Qe2 {[%emt 0:02:53]} g5 {[%emt 0:03:13]} 11. f4 {[%emt 0:05:37]} gxf4 {[%emt 0:02:15]} 12. Bxf4 {[%emt 0:00:07]} Qc7 {[%emt 0:02:53]} 13. O-O-O {[%emt 0:01:31]} Bd7 {[%emt 0:05:50]} 14. Rhf1 {[%emt 0:02:59]} Be7 {[%emt 0:00:42]} 15. g5 {[%emt 0:08:31]} hxg5 {[%emt 0:09:18]} 16. Bxg5 {[%emt 0:00:13]} Nd5 {[%emt 0:04:30]} 17. exd5 {[%emt 0:04:38]} Bxg5+ {[%emt 0:00:15]} 18. Kb1 {[%emt 0:00:06]} O-O-O {[%emt 0:03:36]} 19. Nf3 {[%emt 0:07:43]} Bf6 {[%emt 0:20:05]} 20. Nxe5 {[%emt 0:05:59]} Bxe5 {[%emt 0:00:10]} 21. Rxf7 {[%emt 0:03:23]} Bxc3 {[%emt 0:00:34]} 22. bxc3 {[%emt 0:00:22]} e5 {[%emt 0:00:37]} 23. Qe3 {[%emt 0:06:07]} Rh4 {[%emt 0:02:38]} 24. Rdf1 {[%emt 0:09:48]} Ra4 {[%emt 0:09:00]} 25. Rf8 {[%emt 0:05:14]} Be8 {[%emt 0:00:45]} 26. Kb2 {[%emt 0:06:07]} Qa5 {[%emt 0:07:44]} 27. Ra1 {[%emt 0:00:20]} Kb8 {[%emt 0:00:48]} 28. Bf3 {[%emt 0:03:34]} Qb5+ {[%emt 0:05:14]} 29. Kc1 {[%emt 0:00:08]} Qf1+ {[%emt 0:00:19]} 30. Kb2 {[%emt 0:00:12]} Qb5+ {[%emt 0:00:25]} 31. Kc1 {[%emt 0:00:13]} Qf1+ {[%emt 0:00:06]} 32. Kb2 {[%emt 0:00:10]} Qxh3 {[%emt 0:00:11]} 33. Rh1 {[%emt 0:06:31]} Qd7 {[%emt 0:02:39]} 34. Qb6 {[%emt 0:01:44]} Rc4 {[%emt 0:01:29]} 35. Rhh8 {[%emt 0:03:19]} Rdc8 {[%emt 0:00:30]} 36. Qb3 {[%emt 0:04:35]} R4c5 {[%emt 0:00:27]} 37. Be2 {[%emt 0:00:42]} Ka7 {[%emt 0:03:28]} 38. Bd3 {[%emt 0:02:23]} e4 {[%emt 0:01:00]} 39. Bf1 {[%emt 0:00:49]} Qg7 {[%emt 0:01:17]} 40. Rxe8 {[%emt 0:00:56]} Rxc3 {[%emt 0:00:11]} 41. Rxc8 {[%emt 0:30:47]} Rxc8+ {[%emt 0:30:15]} 0-1